bitfinex-derivatives/quotes_BTCF0:USTF0_20210105
["timestamp","ask_amount","ask_price","bid_price","bid_amount"]
[1609809620306,0.01818982,32398.0,32397.0,0.13632608]
[1609809620508,0.01821944,32401.0,32397.0,0.13632608]
[1609809621708,0.01821944,32401.0,32394.0,0.14944]
[1609809622110,0.01822795,32406.0,32401.0,4.1717]
[1609809622308,0.01822795,32406.0,32405.0,0.13632608]
[1609809623012,0.1314,32408.0,32394.0,0.14944]
[1609809623210,0.2905,32409.0,32394.0,0.14944]
[1609809623612,0.2905,32409.0,32392.0,4.2832]
[1609809623812,0.39652,32409.0,32392.0,4.2832]
[1609809624211,0.39652,32409.0,32401.0,0.13632608]
[1609809625212,0.01822888,32406.0,32401.0,0.13632608]
[1609809626014,0.559582,32406.0,32402.0,5.0732]
[1609809626215,0.559582,32406.0,32405.0,0.13632608]
[1609809630319,0.69590808,32406.0,32405.0,0.13632608]
[1609809631925,0.559582,32406.0,32405.0,0.13632608]
[1609809632324,0.41481338,32409.0,32405.0,0.13632608]
[1609809633526,0.39652,32409.0,32405.0,0.13632608]
[1609809634127,0.10602,32409.0,32405.0,0.13632608]
[1609809634327,0.01828644,32410.0,32405.0,0.13632608]
[1609809634529,0.01828644,32410.0,32401.0,5.146]
[1609809635130,0.56214233,32413.0,32401.0,5.146]
[1609809635630,0.11466,32415.0,32401.0,5.146]
[1609809636330,0.11466,32415.0,32414.0,0.13632608]
[1609809639840,0.54367681,32423.0,32414.0,0.13632608]
[1609809639841,0.01826863,32423.0,32414.0,0.13632608]
[1609809640246,0.01826863,32423.0,32422.0,0.13632608]
[1609809640740,0.11166863,32423.0,32422.0,0.13632608]
[1609809641040,0.0934,32423.0,32422.0,0.13632608]
[1609809641441,0.56108316,32424.0,32422.0,0.13632608]
[1609809641841,0.56108316,32424.0,32407.0,4.6184]
[1609809642141,0.71610316,32424.0,32407.0,4.6184]
[1609809642341,0.71610316,32424.0,32420.0,0.13632608]
[1609809642742,0.15502,32424.0,32420.0,0.13632608]
[1609809647150,0.13632608,32426.0,32420.0,0.13632608]
[1609809647850,0.30802882,32430.0,32420.0,0.13632608]
[1609809648051,0.00922882,32430.0,32420.0,0.13632608]
[1609809648451,0.00922655,32431.0,32429.0,0.13632608]
[1609809651455,0.13632608,32439.0,32429.0,0.13632608]
[1609809651855,0.00916251,32438.0,32429.0,0.13632608]
[1609809652054,0.12884251,32438.0,32429.0,0.87242608]
[1609809652255,0.12884251,32438.0,32429.0,0.13632608]
[1609809652455,0.11968,32438.0,32437.0,0.13632608]
[1609809654859,0.11968,32438.0,32426.0,4.3563]
[1609809656364,0.11968,32438.0,32437.0,0.13632608]
[1609809657061,0.13632608,32440.0,32437.0,0.13632608]
[1609809657664,0.02720729,32446.0,32437.0,0.13632608]
[1609809658366,0.16353337,32446.0,32445.0,0.13632608]
[1609809658766,0.14545484,32446.0,32445.0,0.13632608]
[1609809659168,0.13632608,32446.0,32445.0,0.13632608]
[1609809663572,0.28195608,32446.0,32445.0,0.13632608]
[1609809665776,0.28195608,32446.0,32424.0,4.7159]
[1609809666377,0.14563,32446.0,32438.0,0.13632608]
[1609809666576,0.14563,32446.0,32424.0,4.7159]
[1609809666977,0.0092496,32443.0,32407.0,0.12069]
[1609809667178,0.0092496,32443.0,32398.0,3.4804]
[1609809667680,0.00924865,32434.0,32398.0,3.4804]
[1609809667879,0.10605865,32434.0,32398.0,3.4804]
[1609809668079,0.2922,32433.0,32398.0,3.4804]
[1609809668682,0.13632608,32418.0,32415.0,0.13632608]
[1609809669081,0.29066608,32418.0,32415.0,0.13632608]
[1609809671188,0.29066608,32418.0,32398.0,3.4804]
[1609809672688,0.15434,32418.0,32410.0,0.13632608]
[1609809673589,0.15434,32418.0,32398.0,3.4804]
[1609809674089,0.02747853,32427.0,32398.0,3.4804]
[1609809674589,0.13632608,32417.0,32414.0,0.13632608]
[1609809674790,0.23348608,32417.0,32414.0,0.13632608]
[1609809675191,0.23348608,32417.0,32398.0,3.4804]
[1609809675791,0.09716,32417.0,32398.0,3.4804]
[1609809676691,0.09716,32417.0,32412.0,0.13632608]
[1609809678495,0.09716,32417.0,32398.0,3.4804]
[1609809678697,0.13632608,32408.0,32375.0,2.22853916]
[1609809678896,0.29261608,32408.0,32385.0,4.243]
[1609809679898,0.30186937,32408.0,32385.0,4.243]
[1609809680399,0.0092444,32405.0,32385.0,4.243]
[1609809680595,0.0092444,32405.0,32386.0,0.13632608]
[1609809680798,0.13632608,32387.0,32386.0,0.13632608]
[1609809681800,0.13491,32394.0,32386.0,0.13632608]
[1609809682702,0.13491,32394.0,32393.0,0.13632608]
[1609809683703,0.00925064,32406.0,32393.0,0.13632608]
[1609809683905,0.00925343,32409.0,32393.0,0.13632608]
[1609809684706,0.00925343,32409.0,32401.0,0.13632608]
[1609809684906,0.00925539,32411.0,32401.0,0.13632608]
[1609809685105,0.00925539,32411.0,32385.0,4.243]
[1609809685907,0.00925249,32410.0,32385.0,4.243]
[1609809686105,0.16486249,32410.0,32385.0,4.243]
[1609809686707,0.13632608,32397.0,32395.0,0.13632608]
[1609809686907,0.24872608,32397.0,32395.0,0.13632608]
[1609809689311,0.1124,32397.0,32380.0,0.1461]
[1609809689511,0.1124,32397.0,32370.0,4.1759]
[1609809690811,0.1124,32397.0,32388.0,0.13632608]
[1609809691911,0.00923075,32402.0,32388.0,0.13632608]
[1609809692112,0.0275087,32402.0,32388.0,0.13632608]
[1609809692612,0.00923075,32402.0,32388.0,0.13632608]
[1609809692813,0.13632608,32389.0,32388.0,0.13632608]
[1609809693313,0.1325,32390.0,32388.0,0.13632608]
[1609809695116,0.02751041,32407.0,32388.0,0.13632608]
[1609809696717,0.02751041,32407.0,32406.0,0.13632608]
[1609809696918,0.00922538,32409.0,32406.0,0.13632608]
[1609809697919,0.15561,32410.0,32406.0,0.13632608]
[1609809698125,0.1064097,32417.0,32406.0,0.13632608]
[1609809698419,0.1064097,32417.0,32387.0,4.8219]
[1609809698819,0.13632608,32410.0,32404.0,0.13632608]
[1609809699019,0.28662608,32410.0,32404.0,0.13632608]
[1609809699820,0.1503,32410.0,32404.0,0.13632608]
[1609809700722,0.13632608,32409.0,32408.0,0.13632608]
[1609809705432,0.13632608,32409.0,32402.0,4.9245]
[1609809705931,0.13632608,32409.0,32387.0,0.1771]
[1609809706133,0.13632608,32409.0,32386.0,0.10366]
[1609809706332,0.13632608,32409.0,32379.0,3.9363]
[1609809706532,0.41602608,32409.0,32379.0,3.9363]
[1609809706732,0.2797,32409.0,32379.0,3.9363]
[1609809708133,0.30735026,32409.0,32379.0,3.9363]
[1609809708534,0.00927547,32408.0,32379.0,3.9363]
[1609809708736,0.13632608,32393.0,32391.0,0.13632608]
[1609809709035,0.27157608,32393.0,32391.0,0.13632608]
[1609809709735,0.13525,32393.0,32391.0,0.13632608]
[1609809710136,0.13525,32393.0,32392.0,3.7847]
[1609809710838,0.13525,32393.0,32392.0,3.92102608]
[1609809711038,0.13632608,32400.0,32392.0,0.13632608]
[1609809711440,0.2797,32409.0,32380.0,0.12376]
[1609809712739,0.13632608,32397.0,32395.0,0.13632608]
[1609809712941,0.29291608,32397.0,32395.0,0.13632608]
[1609809714841,0.29291608,32397.0,32380.0,0.12376]
[1609809715543,0.29291608,32397.0,32372.0,0.14437]
[1609809715742,0.29291608,32397.0,32365.0,4.503]
[1609809715943,0.15659,32397.0,32365.0,4.503]
[1609809716744,0.15659,32397.0,32372.0,0.13632608]
[1609809718145,0.2877,32400.0,32372.0,0.13632608]
[1609809718546,0.46332553,32397.0,32365.0,4.503]
[1609809718746,0.46332553,32397.0,32368.0,0.13632608]
[1609809718747,0.00921325,32394.0,32368.0,0.13632608]
[1609809719246,0.00919787,32389.0,32365.0,4.503]
[1609809719447,0.11691787,32389.0,32342.0,2.23463102]
[1609809719645,0.2976,32388.0,32353.0,4.8279]
[1609809719946,0.30678174,32388.0,32353.0,4.8279]
[1609809720145,0.30678174,32388.0,32339.0,2.40929226]
[1609809720346,3.6696,32374.0,32339.0,2.40929226]
[1609809720548,3.7924,32374.0,32339.0,2.23219226]
[1609809720748,3.7924,32374.0,32330.0,4.3973]
[1609809720749,0.2882,32373.0,32351.0,0.13632608]
[1609809721147,0.2882,32373.0,32336.0,2.23572844]
[1609809721349,0.2882,32373.0,32330.0,4.3973]
[1609809721551,0.2882,32373.0,32327.0,2.23611206]
[1609809721749,5.0306,32360.0,32327.0,2.23611206]
[1609809721950,5.14074,32360.0,32327.0,2.23611206]
[1609809722152,5.14074,32360.0,32322.0,2.23633736]
[1609809722850,5.14074,32360.0,32335.0,0.13632608]
[1609809724851,0.13632608,32336.0,32335.0,0.13632608]
[1609809725452,0.13422,32340.0,32335.0,0.13632608]
[1609809726052,0.13422,32340.0,32335.0,0.14775]
[1609809726252,0.0933,32339.0,32335.0,0.14775]
[1609809726856,0.0933,32339.0,32338.0,0.13632608]
[1609809728654,0.0933,32339.0,32335.0,0.14775]
[1609809728852,0.0933,32339.0,32327.0,0.12782]
[1609809729054,0.13282,32346.0,32321.0,0.1771]
[1609809729254,0.13282,32346.0,32341.0,0.13632608]
[1609809729955,0.22502,32346.0,32341.0,0.13632608]
[1609809730755,0.22502,32346.0,32321.0,0.31287]
[1609809730956,5.1476,32344.0,32321.0,0.31287]
[1609809731357,5.1476,32344.0,32341.0,0.13632608]
[1609809731957,5.1476,32344.0,32321.0,0.31287]
[1609809733260,5.1476,32344.0,32331.0,0.13632608]
[1609809733660,5.1476,32344.0,32321.0,0.31287]
[1609809734060,5.1476,32344.0,32321.0,0.13577]
[1609809734261,5.1476,32344.0,32316.0,4.1944]
[1609809734462,0.13282,32346.0,32312.0,2.23032377]
[1609809734665,3.628,32345.0,32312.0,0.1263]
[1609809734861,3.77675,32345.0,32314.0,0.576]
[1609809735263,3.77675,32345.0,32337.0,0.13632608]
[1609809735462,0.14875,32345.0,32337.0,0.13632608]
[1609809735662,0.14875,32345.0,32327.0,4.91279]
[1609809735863,0.14875,32345.0,32327.0,0.15129]
[1609809737266,0.13632608,32328.0,32322.0,0.13632608]
[1609809738262,0.13632608,32328.0,32312.0,0.1263]
[1609809738863,4.2928,32330.0,32312.0,0.1263]
[1609809739064,0.092,32329.0,32312.0,0.1263]
[1609809739265,4.938,32318.0,32312.0,0.1263]
[1609809739464,0.85082608,32313.0,32312.0,0.0255]
[1609809739663,0.85082608,32313.0,32306.0,0.13632608]
[1609809739868,4.1172,32309.0,32289.0,0.1771]
[1609809740265,0.11227,32323.0,32289.0,0.1771]
[1609809740467,0.11227,32323.0,32289.0,0.3016]
[1609809740666,0.11227,32323.0,32289.0,0.1245]
[1609809741067,0.11227,32323.0,32290.0,0.1771]
[1609809741469,0.11227,32323.0,32307.0,0.13632608]
[1609809741666,0.11227,32323.0,32307.0,0.26750608]
[1609809741867,0.69117,32323.0,32307.0,0.26750608]
[1609809742268,0.69117,32323.0,32307.0,0.13118]
[1609809742669,0.69117,32323.0,32300.0,0.13841]
[1609809743469,0.13632608,32317.0,32313.0,0.13632608]
[1609809744472,0.5789,32323.0,32300.0,0.13841]
[1609809744674,0.671,32323.0,32300.0,0.13841]
[1609809745375,0.5789,32323.0,32300.0,0.13841]
[1609809745575,0.11819,32330.0,32309.0,0.13632608]
[1609809745774,4.7852,32335.0,32300.0,0.13841]
[1609809747076,0.46410891,32343.0,32300.0,0.13841]
[1609809747279,0.46410891,32343.0,32302.0,3.9216]
[1609809747477,0.13632608,32314.0,32312.0,0.13632608]
[1609809748881,0.22902608,32314.0,32312.0,0.13632608]
[1609809749478,0.13632608,32314.0,32312.0,0.13632608]
[1609809751281,0.13632608,32314.0,32313.0,0.5059]
[1609809751482,0.13632608,32314.0,32312.0,0.13632608]
[1609809752585,0.0915,32323.0,32312.0,0.13632608]
[1609809753586,0.0915,32323.0,32322.0,0.13632608]
[1609809753786,0.13632608,32325.0,32322.0,0.13632608]
[1609809754587,0.14875,32345.0,32322.0,0.13632608]
[1609809754786,0.14875,32345.0,32328.0,4.8035]
[1609809754989,0.00886116,32356.0,32328.0,4.8035]
[1609809755489,0.2814,32359.0,32344.0,0.13632608]
[1609809756491,0.2814,32359.0,32342.0,4.4939]
[1609809756692,0.40409,32359.0,32342.0,4.4939]
[1609809757094,0.40409,32359.0,32335.0,0.11281]
[1609809757496,0.13632608,32336.0,32335.0,0.24913608]
[1609809758599,0.10548,32350.0,32335.0,0.24913608]
[1609809758898,0.10548,32350.0,32341.0,4.9769]
[1609809759097,0.12269,32359.0,32341.0,4.9769]
[1609809760198,0.12269,32359.0,32358.0,0.13632608]
[1609809761701,0.275,32370.0,32358.0,0.13632608]
[1609809762200,0.275,32370.0,32367.0,0.13632608]
[1609809763206,0.275,32370.0,32352.0,0.11377]
[1609809763407,0.02672585,32383.0,32352.0,0.11377]
[1609809763606,0.11902,32375.0,32352.0,0.11377]
[1609809764008,0.11902,32375.0,32352.0,0.64377]
[1609809764206,0.11902,32375.0,32374.0,0.13632608]
[1609809764806,0.02681881,32385.0,32374.0,0.13632608]
[1609809765706,0.02681881,32385.0,32367.0,5.27428]
[1609809765905,0.13596881,32385.0,32367.0,5.27428]
[1609809766207,0.10915,32385.0,32370.0,0.13632608]
[1609809768409,0.10915,32385.0,32384.0,0.13632608]
[1609809768609,0.2981,32388.0,32384.0,3.90882608]
[1609809768808,0.00906754,32392.0,32384.0,3.90882608]
[1609809769009,0.02706717,32398.0,32384.0,3.90882608]
[1609809769912,0.00909419,32402.0,32384.0,3.90882608]
[1609809770310,0.00909419,32402.0,32401.0,0.13632608]
[1609809770513,0.00911772,32411.0,32401.0,0.13632608]
[1609809770711,0.00911772,32411.0,32404.0,4.378]
[1609809770912,0.0091351,32416.0,32404.0,4.378]
[1609809772813,0.0091351,32416.0,32413.0,0.13632608]
[1609809773314,0.02723432,32418.0,32413.0,0.13632608]
[1609809773713,0.02723432,32418.0,32414.0,3.7475]
[1609809774115,0.0091584,32419.0,32414.0,3.7475]
[1609809774718,0.00920751,32429.0,32414.0,3.7475]
[1609809774915,0.00920751,32429.0,32428.0,0.13632608]
[1609809775120,0.00920751,32429.0,32420.0,0.13673]
[1609809776518,0.00921869,32433.0,32420.0,0.13673]
[1609809777120,0.02740683,32433.0,32422.0,0.13632608]
[1609809777522,0.02740683,32433.0,32420.0,0.13673]
[1609809777721,0.02736844,32432.0,32413.0,5.0482]
[1609809778122,0.0091504,32430.0,32413.0,5.0482]
[1609809778620,0.02728532,32432.0,32413.0,5.0482]
[1609809779221,0.26405608,32433.0,32429.0,0.13632608]
[1609809779422,0.13632608,32433.0,32429.0,0.13632608]
[1609809779924,0.13632608,32433.0,32429.0,0.13444241]
[1609809780723,0.13632608,32433.0,32426.0,4.5013]
[1609809781125,0.13632608,32428.0,32426.0,4.5013]
[1609809782225,0.13632608,32428.0,32425.0,0.13632608]
[1609809783026,0.13632608,32428.0,32415.0,5.0796]
[1609809783225,0.1232,32432.0,32420.0,0.13632608]
[1609809783525,0.1232,32432.0,32420.0,0.25894608]
[1609809783727,0.1232,32432.0,32420.0,0.12262]
[1609809784727,0.1232,32432.0,32415.0,5.0796]
[1609809785129,0.1232,32432.0,32418.0,0.13632608]
[1609809787232,0.1232,32432.0,32415.0,5.0796]
[1609809788235,0.00915697,32439.0,32415.0,5.0796]
[1609809789139,0.00915697,32439.0,32424.0,0.13632608]
[1609809789540,0.00915697,32439.0,32424.0,3.91352608]
[1609809790941,0.18662338,32440.0,32424.0,0.13632608]
[1609809791141,0.18662338,32440.0,32414.0,4.3243]
[1609809791340,0.13632608,32425.0,32417.0,0.13632608]
[1609809791541,0.26861608,32425.0,32417.0,0.13632608]
[1609809792043,0.26861608,32425.0,32404.0,4.4575]
[1609809793244,0.13632608,32410.0,32409.0,0.13632608]
[1609809794342,0.13229,32425.0,32409.0,0.13632608]
[1609809795243,0.13632608,32415.0,32414.0,0.13632608]
[1609809795442,0.13229,32425.0,32414.0,0.13632608]
[1609809796243,0.13229,32425.0,32418.0,3.6938]
[1609809796642,0.15934,32440.0,32418.0,3.6938]
[1609809797042,0.00920171,32441.0,32414.0,0.13632608]
[1609809797244,0.00920171,32441.0,32422.0,0.13632608]
[1609809798043,0.00920171,32441.0,32410.0,0.14203]
[1609809798242,0.10918171,32441.0,32410.0,0.14203]
[1609809798445,0.6061,32440.0,32410.0,0.14203]
[1609809799047,0.61530036,32440.0,32410.0,0.14203]
[1609809799245,0.61530036,32440.0,32415.0,0.13632608]
[1609809800048,0.00918326,32436.0,32415.0,0.13632608]
[1609809800648,0.00918326,32436.0,32404.0,4.9622]
[1609809800849,0.00918766,32433.0,32404.0,4.9622]
[1609809801250,0.00918606,32430.0,32408.0,0.13632608]
[1609809801649,0.00918606,32430.0,32404.0,4.9622]
[1609809801850,0.02737512,32430.0,32404.0,4.9622]
[1609809803252,0.02737512,32430.0,32421.0,0.13632608]
[1609809804054,0.4628437,32431.0,32421.0,0.13632608]
[1609809804353,0.4628437,32431.0,32413.0,0.13709]
[1609809804856,0.29954988,32432.0,32413.0,0.13709]
[1609809805255,0.272,32432.0,32413.0,0.13709]
[1609809805456,0.272,32432.0,32417.0,0.13632608]
[1609809807359,0.13632608,32418.0,32417.0,0.13632608]
[1609809807857,0.13632608,32418.0,32413.0,0.13709]
[1609809808258,0.13632608,32418.0,32403.0,0.12874]
[1609809808458,0.13632608,32418.0,32399.0,3.4677]
[1609809808658,0.12362,32425.0,32399.0,3.4677]
[1609809809358,3.6546,32430.0,32421.0,0.13632608]
[1609809809558,0.272,32432.0,32421.0,0.13632608]
[1609809811358,0.272,32432.0,32428.0,0.13632608]
[1609809812661,0.272,32432.0,32422.0,3.848]
[1609809813362,0.272,32432.0,32431.0,0.13632608]
[1609809814765,0.272,32432.0,32431.0,0.1344426]
[1609809815364,0.40832608,32432.0,32431.0,0.1344426]
[1609809815768,0.40832608,32432.0,32414.0,0.12906]
[1609809815965,0.40832608,32432.0,32404.0,4.7582]
[1609809816165,0.272,32432.0,32404.0,4.7582]
[1609809817365,0.272,32432.0,32414.0,0.13632608]
[1609809818268,0.272,32432.0,32416.0,3.5885]
[1609809818467,0.00938376,32427.0,32416.0,3.5885]
[1609809818870,0.0094216,32426.0,32416.0,3.5885]
[1609809819371,0.02804829,32427.0,32423.0,0.13632608]
[1609809820075,0.00938984,32427.0,32423.0,0.13632608]
[1609809821375,0.14571592,32427.0,32423.0,0.13632608]
[1609809821576,0.13632608,32427.0,32423.0,0.13632608]
[1609809821974,0.13632608,32427.0,32414.0,0.15594]
[1609809822577,0.00939246,32428.0,32414.0,0.15594]
[1609809823382,0.00939246,32428.0,32427.0,0.13632608]
[1609809823581,0.00939246,32428.0,32427.0,0.26031608]
[1609809823781,0.02806509,32428.0,32427.0,0.26031608]
[1609809824381,0.00939246,32428.0,32427.0,0.26031608]
[1609809824582,0.02829759,32438.0,32432.0,3.4573]
[1609809824980,0.55869118,32439.0,32432.0,3.4573]
[1609809824981,0.02829731,32439.0,32432.0,3.4573]
[1609809825381,0.02829731,32439.0,32438.0,0.13632608]
[1609809825582,0.57747852,32439.0,32438.0,0.13632608]
[1609809825985,0.00948917,32439.0,32438.0,0.13632608]
[1609809826588,0.02828148,32440.0,32438.0,0.13632608]
[1609809828086,2.05819448,32439.0,32438.0,0.13632608]
[1609809828286,2.05819448,32439.0,32438.0,0.86332608]
[1609809829191,1.2349541,32439.0,32438.0,0.86332608]
[1609809830092,0.56135978,32439.0,32438.0,0.86332608]
[1609809830693,1.23517135,32439.0,32438.0,0.86332608]
[1609809832196,0.56135978,32439.0,32438.0,0.86332608]
[1609809832695,1.23516517,32439.0,32438.0,0.86332608]
[1609809833295,0.56135978,32439.0,32438.0,0.86332608]
[1609809836999,0.02838737,32439.0,32438.0,0.86332608]
[1609809837197,0.56046366,32440.0,32438.0,0.86332608]
[1609809837400,0.56046366,32440.0,32438.0,0.13632608]
[1609809837600,0.56043468,32441.0,32438.0,0.13632608]
[1609809838201,0.55991542,32445.0,32438.0,0.13632608]
[1609809839003,0.55983128,32449.0,32438.0,0.13632608]
[1609809839602,0.55983128,32449.0,32434.0,0.12893]
[1609809839603,0.21983128,32449.0,32434.0,0.12893]
[1609809839802,0.67174256,32455.0,32444.0,4.1348]
[1609809840001,0.67174256,32455.0,32444.0,4.24043]
[1609809840203,0.67174256,32455.0,32454.0,0.13632608]
[1609809840403,0.67173549,32456.0,32454.0,0.13632608]
[1609809841505,0.82097723,32458.0,32454.0,0.13632608]
[1609809841506,0.67068863,32458.0,32455.0,4.9525]
[1609809842006,0.6705012,32459.0,32455.0,4.9525]
[1609809842209,0.6705012,32459.0,32458.0,0.13632608]
[1609809845208,0.6705012,32459.0,32447.0,3.6022]
[1609809846009,1.48888961,32459.0,32447.0,3.6022]
[1609809846209,1.48888961,32459.0,32456.0,0.13632608]
[1609809846610,1.48888961,32459.0,32457.0,4.4353]
[1609809846812,0.6694627,32460.0,32457.0,4.4353]
[1609809847613,0.66946043,32461.0,32457.0,4.4353]
[1609809847812,0.66946043,32461.0,32456.0,0.13632608]
[1609809848011,0.66946043,32461.0,32451.0,0.14641]
[1609809848414,0.66890707,32460.0,32451.0,0.14641]
[1609809849312,0.66890707,32460.0,32444.0,3.74303]
[1609809849515,0.66886748,32459.0,32444.0,3.74303]
[1609809850513,0.66886748,32459.0,32458.0,0.13632608]
[1609809851015,0.66886748,32459.0,32444.0,3.74303]
[1609809852618,0.66886748,32459.0,32455.0,0.13632608]
[1609809852817,0.66886748,32459.0,32444.0,3.74303]
[1609809853318,0.66891015,32456.0,32444.0,3.74303]
[1609809854520,0.66891015,32456.0,32454.0,0.13632608]
[1609809854921,0.66891015,32456.0,32444.0,3.74303]
[1609809855621,0.66891015,32456.0,32444.0,0.10563]
[1609809855821,0.66891015,32456.0,32414.0,0.15594]
[1609809855822,0.66891015,32456.0,32433.0,5.0695]
[1609809856222,0.66886097,32454.0,32433.0,5.0695]
[1609809856422,0.77626097,32454.0,32433.0,5.0695]
[1609809856622,0.77626097,32454.0,32447.0,0.13632608]
[1609809857323,0.66893499,32451.0,32434.0,0.09926]
[1609809858624,0.66893499,32451.0,32435.0,0.13632608]
[1609809859829,0.66899457,32447.0,32435.0,0.13632608]
[1609809860027,0.80101457,32447.0,32435.0,0.13632608]
[1609809860429,0.66898506,32442.0,32435.0,0.13632608]
[1609809860628,0.13632608,32441.0,32440.0,0.13632608]
[1609809861433,0.13632608,32441.0,32440.0,4.18952608]
[1609809862834,0.13632608,32441.0,32440.0,0.13632608]
[1609809863333,0.6695243,32445.0,32440.0,0.13632608]
[1609809864735,0.6695243,32445.0,32436.0,0.12552]
[1609809865135,0.66941297,32446.0,32444.0,0.13632608]
[1609809865336,0.66941297,32446.0,32444.0,0.28726608]
[1609809865535,0.66980497,32454.0,32444.0,0.28726608]
[1609809865734,0.66980497,32454.0,32449.0,3.8747]
[1609809865935,0.66979322,32455.0,32449.0,3.8747]
[1609809866536,0.66979774,32457.0,32449.0,3.8747]
[1609809866735,0.66979774,32457.0,32444.0,0.28726608]
[1609809867136,0.66979774,32457.0,32456.0,0.13632608]
[1609809867336,0.66979774,32457.0,32444.0,0.15094]
[1609809867337,0.669734,32458.0,32451.0,0.09816]
[1609809867736,0.669734,32458.0,32455.0,4.7282]
[1609809867938,0.669734,32458.0,32451.0,0.09816]
[1609809868938,0.66990694,32460.0,32451.0,0.09816]
[1609809869137,0.66990694,32460.0,32459.0,0.13632608]
[1609809870640,1.22842396,32460.0,32459.0,0.13632608]
[1609809874642,0.66990694,32460.0,32459.0,0.13632608]
[1609809875044,1.6803577,32460.0,32459.0,0.13632608]
[1609809875243,0.13632608,32464.0,32459.0,0.13632608]
[1609809876846,1.22981192,32460.0,32459.0,0.13632608]
[1609809877145,1.366138,32460.0,32459.0,0.13632608]
[1609809877345,1.366138,32460.0,32451.0,0.09816]
[1609809877546,1.366138,32460.0,32445.0,3.8927]
[1609809878252,2.04962385,32460.0,32445.0,3.8927]
[1609809878646,2.04962385,32460.0,32444.0,0.15094]
[1609809878847,2.04962385,32460.0,32458.0,3.9796]
[1609809879249,2.04962385,32460.0,32459.0,0.13632608]
[1609809882452,0.93157906,32463.0,32459.0,0.13632608]
[1609809888864,1.23378457,32460.0,32459.0,0.13632608]
[1609809889064,1.23378457,32460.0,32459.0,4.76292608]
[1609809890072,1.23378457,32460.0,32459.0,0.13632608]
[1609809890263,0.55997882,32474.0,32459.0,0.13632608]
[1609809890465,0.55997882,32474.0,32454.0,0.1556]
[1609809890665,0.55997882,32474.0,32453.0,4.0553]
[1609809890864,0.56011534,32473.0,32453.0,4.0553]
[1609809891268,0.56011534,32473.0,32472.0,0.13632608]
[1609809891866,0.67204589,32473.0,32472.0,0.13632608]
[1609809892670,0.56004778,32473.0,32472.0,0.13632608]
[1609809895073,0.55943855,32474.0,32472.0,0.13632608]
[1609809896777,0.55910409,32475.0,32472.0,0.13632608]
[1609809897575,0.55910699,32474.0,32472.0,0.13632608]
[1609809898978,0.55910699,32474.0,32471.0,0.12038]
[1609809899179,0.55910699,32474.0,32468.0,4.5389]
[1609809899481,0.55910699,32474.0,32473.0,0.13632608]
[1609809900081,0.5591232,32475.0,32473.0,0.13632608]
[1609809901786,0.55888676,32474.0,32473.0,0.13632608]
[1609809902286,0.55870633,32475.0,32473.0,0.13632608]
[1609809906694,0.55870633,32475.0,32474.0,4.053]
[1609809908192,0.55870633,32475.0,32473.0,0.13632608]
[1609809908595,0.55757918,32485.0,32473.0,0.13632608]
[1609809909195,0.55759067,32487.0,32473.0,0.13632608]
[1609809909594,0.55759067,32487.0,32486.0,0.13632608]
[1609809909997,0.13632608,32490.0,32479.0,0.14559]
[1609809909998,0.66907922,32488.0,32479.0,0.14559]
[1609809911596,0.66907922,32488.0,32487.0,0.13632608]
[1609809911999,0.66907922,32488.0,32487.0,4.00682608]
[1609809913297,0.66907922,32488.0,32487.0,0.13632608]
[1609809915500,0.55685886,32488.0,32487.0,0.13632608]
[1609809916001,0.55587858,32493.0,32487.0,0.13632608]
[1609809916903,0.55595108,32492.0,32487.0,0.13632608]
[1609809917704,0.69228817,32489.0,32487.0,0.13632608]
[1609809918904,0.13632608,32489.0,32487.0,0.13632608]
[1609809919106,0.5559527,32491.0,32487.0,0.13632608]
[1609809920507,0.5559527,32491.0,32490.0,4.8529]
[1609809922008,0.4193527,32491.0,32490.0,4.8529]
[1609809923410,0.81531085,32495.0,32487.0,0.28676608]
[1609809923411,0.66653156,32495.0,32487.0,0.28676608]
[1609809923609,0.66653156,32495.0,32494.0,0.13632608]
[1609809923811,0.66653156,32495.0,32494.0,0.26764608]
[1609809924212,0.6676618,32519.0,32494.0,0.26764608]
[1609809925613,0.6676618,32519.0,32507.0,0.13632608]
[1609809925812,0.6676618,32519.0,32494.0,0.13132]
[1609809926212,0.2976,32518.0,32494.0,0.13132]
[1609809927814,0.66681033,32511.0,32487.0,0.15044]
[1609809928014,0.76993033,32511.0,32486.0,4.2287]
[1609809928217,0.76993033,32511.0,32495.0,0.13632608]
[1609809928615,0.66685652,32505.0,32495.0,0.13632608]
[1609809928814,0.66685652,32505.0,32486.0,0.10615]
[1609809929217,0.66717157,32501.0,32486.0,0.10615]
[1609809929614,0.77852157,32501.0,32486.0,0.10615]
[1609809930416,0.77852157,32501.0,32495.0,0.13632608]
[1609809931118,0.77852157,32501.0,32486.0,0.10615]
[1609809932317,0.77852157,32501.0,32494.0,0.13632608]
[1609809932517,0.77852157,32501.0,32495.0,3.8497]
[1609809933418,0.77852157,32501.0,32486.0,0.10615]
[1609809933817,0.77852157,32501.0,32479.0,0.14559]
[1609809934017,0.77852157,32501.0,32472.0,4.4106]
[1609809934218,0.288,32500.0,32472.0,4.4106]
[1609809934419,0.95536283,32500.0,32491.0,0.13632608]
[1609809935318,0.95536283,32500.0,32477.0,0.14097]
[1609809936320,0.95536283,32500.0,32488.0,0.13632608]
[1609809936920,0.66798888,32495.0,32488.0,0.13632608]
[1609809937923,0.66924638,32497.0,32488.0,0.13632608]
[1609809938323,0.13632608,32489.0,32488.0,0.13632608]
[1609809951436,0.670988,32492.0,32477.0,4.39637]
[1609809951637,0.67098717,32493.0,32477.0,4.39637]
[1609809952437,0.55917523,32491.0,32486.0,0.13632608]
[1609809954437,0.55917523,32491.0,32490.0,0.13632608]
[1609809955339,0.69557966,32492.0,32490.0,0.13632608]
[1609809955741,0.55925358,32492.0,32490.0,0.13632608]
[1609809956138,0.55925358,32492.0,32491.0,4.6078]
[1609809957739,0.55925358,32492.0,32490.0,0.13632608]
[1609809963649,0.55925358,32492.0,32488.0,4.5907]
[1609809964152,0.55925358,32492.0,32477.0,0.14097]
[1609809964349,0.55925358,32492.0,32473.0,4.8231]
[1609809964549,0.55925358,32492.0,32491.0,0.13632608]
[1609809965651,0.82015162,32496.0,32491.0,0.13632608]
[1609809965652,0.57797805,32496.0,32491.0,0.13632608]
[1609809966351,0.57797805,32496.0,32489.0,0.09835]
[1609809966851,0.57797805,32496.0,32495.0,0.13632608]
[1609809967253,0.13632608,32499.0,32495.0,0.13632608]